bitfinex/quotes_SOLUSD_20250918
["timestamp","ask_amount","ask_price","bid_price","bid_amount"]
[1758219375347,4.08422247,250.99,250.98,52.79]
[1758219376144,0.1,250.99,250.98,52.79]
[1758219376956,4.08422247,250.99,250.98,52.79]
[1758219377248,4.08422247,250.99,250.98,20.0]
[1758219377436,14.04477866,250.99,250.96,20.0]
[1758219377622,1.64769428,250.98,250.96,52.1]
[1758219377828,1.64769428,250.98,250.96,52.79]
[1758219378632,1.64769428,250.98,250.96,52.1]
[1758219378833,1.64769428,250.98,250.97,0.69]
[1758219379048,0.1,250.99,250.97,0.69]
[1758219379248,4.08422247,250.99,250.98,32.1]
[1758219379453,4.08422247,250.99,250.96,20.0]
[1758219379653,4.08422247,250.99,250.97,32.79]
[1758219379840,4.08422247,250.99,250.97,0.69]
[1758219380373,0.1,250.99,250.98,32.79]
[1758219381137,0.1,250.99,250.98,52.79]
[1758219389867,0.1,250.99,250.98,20.69]
[1758219390271,0.1,250.99,250.98,52.77]
[1758219391457,0.1,250.99,250.98,52.08]
[1758219391662,0.1,250.99,250.98,52.77]
[1758219392261,0.1,250.99,250.98,52.08]
[1758219392262,4.08422247,250.99,250.98,52.08]
[1758219393049,4.08422247,250.99,250.98,20.0]
[1758219393846,0.1,250.99,250.98,20.0]
[1758219395165,4.08422247,250.99,250.98,20.0]
[1758219396565,0.1,250.99,250.98,20.0]
[1758219396761,0.1,250.99,250.98,20.7]
[1758219397071,0.1,250.99,250.98,52.08]
[1758219397371,4.08422247,250.99,250.98,52.08]
[1758219397773,0.1,250.99,250.98,52.78]
[1758219398272,0.1,250.99,250.98,20.7]
[1758219398469,0.1,250.99,250.98,52.78]
[1758219398957,0.16,250.99,250.98,52.78]
[1758219399673,0.06,251.01,250.98,52.78]
[1758219399853,0.06,251.01,250.99,0.7]
[1758219400055,0.06,251.01,251.0,52.08]
[1758219400579,0.06,251.01,251.0,52.78]
[1758219404585,0.06,251.01,251.0,52.08]
[1758219404967,0.06,251.01,251.0,52.78]
[1758219405175,0.06,251.01,250.97,0.03]
[1758219405176,4.29390502,251.01,250.97,0.03]
[1758219405475,2.57073254,250.99,250.97,0.03]
[1758219405775,0.28432314,251.0,250.97,0.03]
[1758219406150,0.25,250.99,250.97,0.03]
[1758219406665,4.26870436,250.98,250.97,0.03]
[1758219406868,4.23438122,250.98,250.97,0.03]
[1758219407066,7.0894369,250.98,250.97,0.03]
[1758219407273,20.68503091,250.98,250.97,0.03]
[1758219408865,32.64985433,250.98,250.97,0.03]
[1758219409061,13.87991715,250.97,250.91,0.03]
[1758219409269,5.42578822,250.92,250.91,0.03]
[1758219409869,5.67578822,250.92,250.91,26.03]
[1758219410264,19.27138223,250.92,250.91,26.03]
[1758219410463,19.27138223,250.92,250.91,0.03]
[1758219411253,23.2567162,250.92,250.91,0.03]
[1758219411958,18.11525112,250.92,250.91,0.03]
[1758219412181,20.68598366,250.92,250.91,0.03]
[1758219412573,23.2567162,250.92,250.91,0.03]
[1758219412891,55.3167162,250.92,250.91,0.03]
[1758219413066,13.87991715,250.91,250.88,0.03]
[1758219413383,20.4364602,250.89,250.88,0.03]
[1758219413585,13.87991715,250.88,250.86,0.03]
[1758219413760,14.12991715,250.88,250.86,0.03]
[1758219414669,46.20991715,250.88,250.86,0.03]
[1758219414870,47.80586344,250.88,250.86,0.03]
[1758219415079,15.72586344,250.88,250.86,0.03]
[1758219415278,47.80586344,250.88,250.86,0.03]
[1758219417379,4.27045141,250.87,250.86,0.03]
[1758219417679,13.87991715,250.86,250.85,0.03]
[1758219417981,16.45064969,250.86,250.85,0.03]
[1758219418155,48.78064969,250.86,250.83,0.03]
[1758219418361,16.45064969,250.84,250.83,0.03]
[1758219418776,16.70064969,250.84,250.83,0.03]
[1758219418973,13.87991715,250.83,250.82,0.03]
[1758219419179,16.70064969,250.83,250.82,0.03]
[1758219419389,17.86684004,250.82,250.81,0.13]
[1758219419692,49.94684004,250.82,250.81,0.13]
[1758219420589,0.25,250.96,250.85,26.0]
[1758219420764,2.57073254,250.9,250.89,26.0]
[1758219420964,13.87991715,250.91,250.86,26.66]
[1758219421178,2.57073254,250.88,250.87,0.66]
[1758219421463,2.57073254,250.88,250.86,46.0]
[1758219421887,2.57073254,250.88,250.87,0.66]
[1758219422086,6.55673192,250.88,250.84,20.0]
[1758219422276,2.57073254,250.85,250.84,26.0]
[1758219422590,0.28432314,250.87,250.84,26.0]
[1758219422798,0.28432314,250.87,250.85,0.67]
[1758219423177,0.28432314,250.87,250.86,0.67]
[1758219424168,3.98599938,250.88,250.86,0.67]
[1758219424370,3.98501633,250.94,250.87,20.0]
[1758219424602,0.31,251.01,250.87,20.0]
[1758219424603,2.63073254,250.99,250.88,0.67]
[1758219424792,36.06452925,250.98,250.9,20.0]
[1758219425096,36.06452925,250.98,250.91,0.67]
[1758219425393,46.02548231,250.98,250.91,0.67]
[1758219425583,0.28432314,250.96,250.91,0.67]
[1758219425771,0.28432314,250.96,250.92,0.67]
[1758219425976,32.36432314,250.96,250.93,0.67]
[1758219428297,3.98501633,250.94,250.93,0.67]
[1758219428977,13.94755717,250.94,250.9,20.67]
[1758219429295,13.94755717,250.94,250.9,0.67]
[1758219429478,46.02755717,250.94,250.88,20.0]
[1758219429682,46.02755717,250.94,250.89,0.67]
[1758219429882,46.02755717,250.94,250.9,0.67]
[1758219430282,46.02755717,250.94,250.88,20.0]
[1758219430487,46.02755717,250.94,250.88,20.67]
[1758219431086,13.87991715,250.93,250.88,20.67]
[1758219431475,13.87991715,250.93,250.88,20.0]
[1758219431793,34.63073254,250.92,250.89,0.67]
[1758219433108,3.9854928,250.91,250.89,0.67]
[1758219433279,32.06,250.96,250.91,20.0]
[1758219433480,32.06,250.96,250.92,0.67]
[1758219433716,32.06,250.96,250.93,0.67]
[1758219434080,32.06,250.96,250.91,20.0]
[1758219434277,32.06,250.96,250.94,0.67]
[1758219434595,32.34432314,250.96,250.95,0.67]
[1758219434792,36.32902189,250.96,250.95,0.67]
[1758219435299,0.28432314,250.95,250.93,0.67]
[1758219435500,13.87991715,250.95,250.91,20.0]
[1758219435704,2.57073254,250.94,250.9,0.67]
[1758219435881,32.06,250.93,250.9,0.67]
[1758219436478,32.06,250.93,250.89,20.0]
[1758219436711,2.57073254,250.91,250.89,0.67]
[1758219436917,36.04565165,250.9,250.86,0.67]
[1758219437121,36.04565165,250.9,250.88,20.0]
[1758219437413,3.98565165,250.9,250.89,0.67]
[1758219437597,36.04565165,250.9,250.89,0.67]
[1758219438128,3.98565165,250.9,250.89,0.67]
[1758219438334,36.04565165,250.9,250.89,0.67]
[1758219438497,36.04565165,250.9,250.88,20.0]
[1758219438704,2.57073254,250.89,250.86,20.0]
[1758219438903,3.98596938,250.88,250.86,20.0]
[1758219439105,3.98596938,250.88,250.87,0.67]
[1758219439304,13.95089284,250.88,250.84,20.0]
[1758219439532,2.57073254,250.86,250.85,0.67]
[1758219439706,2.57073254,250.86,250.84,20.0]
[1758219440132,32.06,250.87,250.84,20.0]
[1758219440319,32.06,250.87,250.85,0.67]
[1758219440933,38.61670192,250.88,250.86,0.67]
[1758219441135,38.61670192,250.88,250.87,0.67]
[1758219441735,6.55670192,250.88,250.87,0.67]
[1758219441926,38.61670192,250.88,250.87,0.67]
[1758219442709,6.55670192,250.88,250.84,20.0]
[1758219442917,38.61670192,250.88,250.85,0.67]
[1758219443110,38.61670192,250.88,250.86,0.67]
[1758219443315,6.55670192,250.88,250.86,0.67]
[1758219443615,6.55670192,250.88,250.84,20.0]
[1758219443616,36.04612827,250.87,250.84,20.0]
[1758219443838,32.06,250.87,250.86,20.0]
[1758219444135,32.06,250.87,250.86,20.67]
[1758219444320,34.63073254,250.88,250.86,20.67]
[1758219444710,34.63073254,250.88,250.87,0.67]
[1758219444909,38.61671059,250.88,250.87,0.67]
[1758219445124,6.55671059,250.88,250.87,0.67]
[1758219445340,3.98575684,250.9,250.87,0.67]
[1758219445807,3.98575684,250.9,250.89,20.0]
[1758219446009,4.26949828,250.93,250.89,20.67]
[1758219446209,32.06,250.92,250.9,0.67]
[1758219446454,4.26949828,250.93,250.91,0.67]
[1758219446645,32.06,250.92,250.91,0.67]
[1758219447220,36.04533397,250.92,250.91,0.67]
[1758219448526,3.98533397,250.92,250.91,0.67]
[1758219448719,36.04533397,250.92,250.91,0.67]
[1758219451346,46.00866889,250.92,250.89,20.0]
[1758219451720,2.57073254,250.91,250.89,20.0]
[1758219451925,32.04,250.9,250.86,20.0]
[1758219452125,32.04,250.9,250.86,20.67]
[1758219452126,0.28432314,250.9,250.86,20.67]
[1758219452426,32.04,250.89,250.86,20.67]
[1758219452868,32.04,250.89,250.87,0.72]
[1758219453066,32.04,250.88,250.86,20.72]
[1758219453374,36.02596938,250.88,250.87,0.72]
[1758219453872,38.88102506,250.88,250.84,20.0]
[1758219454080,0.28432314,250.87,250.85,0.72]
[1758219454281,32.04,250.86,250.85,0.72]
[1758219454757,0.28432314,250.87,250.85,0.72]
[1758219455070,32.04,250.86,250.85,0.72]
[1758219456273,3.98644608,250.85,250.84,20.0]
[1758219456474,13.95256128,250.85,250.82,0.75]
[1758219456666,32.04,250.84,250.82,20.75]
[1758219456974,32.04,250.84,250.82,0.75]
[1758219457148,32.04,250.84,250.82,20.75]
[1758219458049,32.04,250.84,250.82,0.03]
[1758219458249,18.11668109,250.83,250.82,0.03]
[1758219458449,18.11668109,250.83,250.79,0.03]
[1758219458450,0.28432314,250.81,250.79,0.03]
[1758219458668,48.49064969,250.8,250.79,0.03]
[1758219458880,48.74064969,250.8,250.79,0.03]
[1758219459178,48.49064969,250.8,250.79,0.03]
[1758219459377,16.70064969,250.8,250.79,0.03]
[1758219459587,16.70064969,250.8,250.73,0.03]
[1758219459588,13.87991715,250.79,250.73,0.03]
[1758219459750,15.5294802,250.77,250.73,0.03]
[1758219460164,19.76719802,250.77,250.73,0.03]
[1758219461667,19.51719802,250.77,250.73,0.03]
[1758219461873,51.55719802,250.77,250.73,0.03]
[1758219462063,19.51719802,250.77,250.73,0.03]
[1758219462262,51.55719802,250.77,250.73,0.03]
[1758219462477,19.51719802,250.77,250.73,0.03]
[1758219462782,51.55719802,250.77,250.73,0.03]
[1758219463354,61.77649259,250.77,250.73,0.03]
[1758219463576,0.25,250.76,250.73,0.03]
[1758219463771,15.5294802,250.74,250.73,0.03]
[1758219464081,32.04,250.74,250.73,0.75]
[1758219464286,9.78534076,250.76,250.73,0.75]
[1758219464487,32.04,250.74,250.73,0.75]
[1758219464976,9.78534076,250.76,250.73,0.03]
[1758219465188,32.04,250.75,250.73,0.03]
[1758219465370,5.63775799,250.74,250.73,0.03]
[1758219465573,19.51767514,250.74,250.73,0.03]
[1758219465886,51.55767514,250.74,250.73,0.03]
[1758219466690,19.51767514,250.74,250.73,0.03]
[1758219466864,32.04,250.74,250.73,0.75]
[1758219467499,36.02819494,250.74,250.73,0.75]
[1758219467876,3.98819494,250.74,250.73,0.75]
[1758219470693,3.98819494,250.74,250.73,0.03]
[1758219470889,15.76132714,250.74,250.73,0.03]
[1758219471071,3.98819494,250.74,250.73,0.03]
[1758219471994,36.02819494,250.74,250.73,0.03]
[1758219472185,3.98819494,250.74,250.73,0.03]
[1758219472377,51.55767514,250.74,250.73,0.03]
[1758219473675,13.87991715,250.73,250.71,0.2]
[1758219473994,32.04,250.72,250.71,0.2]
[1758219474203,26.17982211,250.74,250.72,0.71]
[1758219474387,32.04,250.73,250.71,0.2]
[1758219474590,3.98851308,250.72,250.71,0.2]
[1758219474892,3.98851308,250.72,250.71,0.91]
[1758219475193,3.98851308,250.72,250.71,0.2]
[1758219475773,17.86843023,250.72,250.71,0.2]
[1758219476588,49.88843023,250.72,250.71,0.2]
[1758219476780,17.86843023,250.72,250.71,0.2]
[1758219476980,49.88843023,250.72,250.71,0.2]
[1758219480497,51.00843023,250.72,250.71,0.2]
[1758219481997,15.5294802,250.71,250.63,0.1]
[1758219482189,13.59559401,250.67,250.63,0.1]
[1758219482391,32.02,250.66,250.63,0.1]
[1758219482606,32.02,250.66,250.63,0.79]
[1758219482607,13.96313731,250.66,250.63,0.79]
[1758219482914,32.02,250.65,250.63,0.79]
[1758219483086,32.02,250.65,250.63,0.1]
[1758219483412,33.66956305,250.65,250.63,0.1]
[1758219483730,13.87991715,250.64,250.63,0.1]
[1758219484389,45.89991715,250.64,250.63,0.1]
[1758219484999,49.88970329,250.64,250.63,0.1]
[1758219485725,3.98978614,250.64,250.63,0.1]
[1758219485895,11.26340007,250.67,250.63,20.79]
[1758219486090,11.26340007,250.67,250.65,20.0]
[1758219486396,11.26340007,250.67,250.66,0.69]
[1758219489615,11.26340007,250.67,250.66,4.6794678]
[1758219491492,11.26340007,250.67,250.66,62.6994678]
[1758219492905,11.26340007,250.67,250.66,142.3994678]
[1758219495219,11.26340007,250.67,250.66,138.41]
[1758219495898,11.26340007,250.67,250.66,142.3994678]
[1758219496520,10.54340007,250.67,250.66,36.6994678]
[1758219497706,10.54340007,250.67,250.66,50.57938495]
[1758219497912,10.54340007,250.67,250.66,130.27938495]
[1758219500601,10.54340007,250.67,250.66,32.69]
[1758219500803,10.54340007,250.67,250.66,32.67]
[1758219501002,10.54340007,250.67,250.66,58.67]
[1758219502118,10.54340007,250.67,250.66,62.6594678]
[1758219503309,0.06,250.7,250.66,62.6594678]
[1758219503508,0.06,250.7,250.67,0.69]
[1758219503702,0.06,250.7,250.69,20.0]
[1758219505325,0.76,250.7,250.69,20.0]
[1758219505623,4.74883127,250.7,250.69,20.0]
[1758219506404,0.06,250.7,250.69,20.0]
[1758219507830,0.06,250.7,250.69,52.67]
[1758219512830,0.06,250.7,250.69,51.98]
[1758219513133,0.06,250.7,250.69,52.7]
[1758219513621,0.06,250.7,250.69,131.68]
[1758219513821,0.06,250.7,250.69,132.4]
[1758219515124,0.06,250.7,250.69,56.68899038]
[1758219515316,0.06,250.7,250.69,70.96780656]
[1758219519537,0.06,250.7,250.69,56.68899038]
[1758219519727,0.06,250.7,250.69,51.98]
[1758219520648,0.06,250.7,250.69,52.7]
[1758219521343,0.06,250.7,250.69,51.98]
[1758219522035,0.06,250.7,250.69,55.96899038]
[1758219522431,0.06,250.7,250.69,51.98]
[1758219524323,0.06,250.7,250.69,77.98]
[1758219527244,0.75,250.7,250.69,77.98]
[1758219527443,0.75,250.7,250.69,20.0]
[1758219527444,4.73883127,250.7,250.69,20.0]
[1758219527751,4.73883127,250.7,250.67,0.03]
[1758219527954,4.73883127,250.7,250.67,20.03]
[1758219528143,0.69,250.69,250.67,20.03]
[1758219528450,0.69,250.68,250.67,0.03]
[1758219529162,4.67914951,250.68,250.67,0.03]
[1758219531244,18.27474352,250.68,250.67,0.03]
[1758219531447,18.55906666,250.68,250.67,0.03]
[1758219533752,16.45602104,250.67,250.66,0.03]
[1758219534130,17.15602104,250.67,250.66,0.03]
[1758219534926,49.07602104,250.67,250.66,0.03]
[1758219535142,53.06532969,250.67,250.66,0.03]
[1758219535933,21.14532969,250.67,250.66,0.03]
[1758219536328,53.06532969,250.67,250.66,0.03]
[1758219536643,21.14532969,250.67,250.66,0.03]
[1758219536842,50.4892258,250.67,250.66,0.03]
[1758219537039,21.14532969,250.67,250.66,0.03]
[1758219537242,53.06532969,250.67,250.66,0.03]
[1758219539158,21.14532969,250.67,250.66,0.03]
[1758219539451,54.6626143,250.67,250.66,0.03]
[1758219539640,64.63588593,250.67,250.64,0.03]
[1758219540151,63.03860132,250.67,250.64,0.03]
[1758219540337,0.28432314,250.65,250.64,0.03]
[1758219540745,32.90432314,250.65,250.64,0.03]
[1758219541160,0.98432314,250.65,250.64,0.03]
[1758219541339,13.96258028,250.67,250.64,0.03]
[1758219541663,35.90911773,250.69,250.67,20.0]
[1758219541959,0.06,250.7,250.69,20.0]
[1758219542131,0.06,250.7,250.69,20.72]
[1758219542534,0.06,250.7,250.69,20.0]
[1758219543053,4.04883127,250.7,250.69,20.0]
[1758219545537,4.72883127,250.7,250.67,20.0]
[1758219545756,17.64442528,250.7,250.67,20.0]
[1758219545947,0.68,250.69,250.67,20.0]
[1758219546833,3.98914951,250.68,250.67,20.0]
[1758219547038,7.52957654,250.68,250.66,0.03]
[1758219547255,0.68,250.67,250.66,0.03]
[1758219548055,6.84957654,250.68,250.66,0.03]
[1758219548260,7.52957654,250.68,250.66,0.03]
[1758219548435,39.42957654,250.68,250.66,0.03]
[1758219548631,14.55991715,250.67,250.66,0.03]
[1758219548855,10.03207818,250.7,250.66,0.03]
[1758219548856,0.06,250.7,250.66,0.03]
[1758219549053,0.06,250.7,250.67,0.71]
[1758219549373,0.06,250.7,250.68,20.0]
[1758219549742,3.98900398,250.69,250.68,20.0]
[1758219551557,3.98900398,250.69,250.68,20.71]
[1758219551957,0.06,250.7,250.68,20.71]
[1758219552156,0.06,250.7,250.69,0.71]
[1758219554641,0.06,250.7,250.68,20.0]
[1758219555050,4.04883127,250.7,250.68,20.0]
[1758219555642,4.04883127,250.7,250.69,0.71]
[1758219556254,0.06,250.7,250.69,0.71]
[1758219556662,0.06,250.7,250.69,36.57899038]
[1758219557055,0.06,250.73,250.72,46.0]
[1758219557562,0.06,250.73,250.72,46.71]
[1758219558449,0.06,250.73,250.72,50.69851308]
[1758219558846,0.06,250.73,250.72,46.71]
[1758219559747,0.06,250.73,250.72,50.69851308]
[1758219563673,0.06,250.73,250.72,82.55851308]
[1758219567277,0.06,250.73,250.72,162.25851308]
[1758219568482,0.06,250.73,250.72,176.13843023]
[1758219571589,0.06,250.73,250.72,158.25]
[1758219572077,0.06,250.73,250.72,126.41]
[1758219572392,0.06,250.73,250.72,158.25]
[1758219572562,0.06,250.73,250.72,162.23851308]
[1758219577093,0.06,250.73,250.72,161.52851308]
[1758219579590,0.06,250.73,250.72,157.54]
[1758219579995,0.06,250.73,250.72,20.0]
[1758219579996,0.72,250.73,250.72,20.0]
[1758219580581,4.708354,250.73,250.72,20.0]
[1758219580992,0.72,250.73,250.72,20.0]
[1758219581175,0.06,250.73,250.72,20.0]
[1758219581576,4.708354,250.73,250.72,20.0]
[1758219581988,0.72,250.73,250.72,20.0]
[1758219582498,4.708354,250.73,250.72,20.0]
[1758219584696,14.67923901,250.73,250.7,0.03]
[1758219586380,1.6490796,250.71,250.7,0.03]
[1758219586888,20.17766892,250.71,250.7,0.03]
[1758219591103,4.64867217,250.71,250.7,0.03]
[1758219591406,3.98867217,250.71,250.7,0.03]
[1758219592203,3.98867217,250.71,250.7,20.03]
[1758219593298,3.98851308,250.72,250.7,20.03]
[1758219593607,0.69,250.71,250.7,20.03]
[1758219593778,14.56991715,250.71,250.7,0.03]
[1758219595109,46.34991715,250.71,250.7,0.03]
[1758219595309,51.98766892,250.71,250.7,0.03]
[1758219595893,20.20766892,250.71,250.7,0.03]
[1758219596180,51.98766892,250.71,250.7,0.03]
[1758219597505,51.98766892,250.71,250.67,0.03]
[1758219597506,0.28432314,250.69,250.67,0.03]
[1758219597705,15.24467361,250.68,250.67,0.03]
[1758219598012,16.21899675,250.68,250.67,0.03]
[1758219598612,20.20814626,250.68,250.67,0.03]
[1758219600982,51.98814626,250.68,250.67,0.03]
[1758219601210,13.87991715,250.67,250.66,1e-08]
[1758219601719,14.56991715,250.67,250.64,0.03]
[1758219601925,15.52899675,250.65,250.64,0.03]
[1758219602588,19.51862371,250.65,250.64,0.03]
[1758219602792,20.17862371,250.65,250.64,0.03]
[1758219606106,18.52954411,250.65,250.64,0.03]
[1758219606447,13.87991715,250.64,250.59,0.1]
[1758219606611,1.93340274,250.62,250.59,0.1]
[1758219606811,19.51910129,250.62,250.59,0.1]
[1758219607026,20.17910129,250.62,250.59,0.1]
[1758219607239,13.87991715,250.61,250.59,0.1]
[1758219607422,14.53991715,250.61,250.59,0.1]
[1758219607820,14.53991715,250.61,250.54,0.68]
[1758219607821,13.59559401,250.48,250.36,2.2776674]
[1758219608019,39.87991715,250.45,250.44,1e-08]
[1758219608244,13.87991715,250.44,250.36,2.2776674]
[1758219608443,15.52899675,250.42,250.31,0.1]
[1758219608619,15.52899675,250.42,250.41,0.78]
[1758219608620,1.93340274,250.42,250.41,0.78]
[1758219608826,28.21401111,250.42,250.41,0.78]
[1758219609324,27.92968797,250.42,250.41,0.78]
[1758219616824,27.92968797,250.42,250.41,32.62]
[1758219623426,27.92968797,250.42,250.41,112.32]
[1758219624650,27.92968797,250.42,250.41,32.62]
[1758219627436,27.92968797,250.42,250.41,36.61345074]
[1758219628554,27.92968797,250.42,250.41,36.64345074]
[1758219630338,0.06,250.44,250.43,26.0]
[1758219630540,0.06,250.44,250.43,31.78]
[1758219630950,0.06,250.44,250.43,32.46]
[1758219631751,0.06,250.44,250.43,36.45313181]
[1758219632352,0.06,250.44,250.43,31.78]
[1758219632856,0.06,250.44,250.43,32.46]
[1758219633045,0.06,250.44,250.43,31.78]
[1758219633361,0.06,250.44,250.43,36.45313181]
[1758219633531,0.06,250.44,250.43,35.77313181]
[1758219634854,0.06,250.44,250.43,36.45313181]
[1758219636140,0.06,250.44,250.43,32.46]
[1758219636459,0.06,250.44,250.43,36.45313181]
[1758219638639,0.06,250.44,250.43,116.15313181]
[1758219641838,0.06,250.44,250.43,129.74872582]
[1758219642055,0.06,250.44,250.43,50.33304896]
[1758219642465,0.06,250.47,250.46,26.0]
[1758219642656,0.06,250.47,250.46,57.78]
[1758219642971,0.06,250.47,250.46,72.05559401]
[1758219643139,0.06,250.47,250.46,72.33991715]
[1758219643540,0.06,250.47,250.46,72.7391825]
[1758219643738,0.06,250.47,250.46,76.73183601]
[1758219645460,1e-08,250.47,250.46,156.43183601]
[1758219645636,1e-08,250.47,250.46,157.62972772]
[1758219646158,1e-08,250.47,250.46,156.03257066]
[1758219646461,1e-08,250.47,250.46,157.62972772]
[1758219647545,1e-08,250.47,250.46,77.92972772]
[1758219647758,1e-08,250.47,250.46,78.32899307]
[1758219648553,0.06,250.53,250.52,39.87991715]
[1758219648755,0.06,250.53,250.52,71.63991715]
[1758219649053,0.06,250.53,250.52,31.76]
[1758219650474,0.06,250.53,250.52,35.75169726]
[1758219651666,0.06,250.53,250.52,49.34729127]
[1758219651856,0.06,250.53,250.52,50.02729127]
[1758219652061,0.06,250.53,250.52,50.31161441]
[1758219656092,0.06,250.53,250.52,49.63161441]
[1758219656260,0.06,250.53,250.52,61.75169726]
[1758219658163,0.06,250.53,250.52,29.99169726]
[1758219658463,0.06,250.53,250.52,61.73169726]
[1758219660789,0.06,250.53,250.52,29.99169726]
[1758219661083,0.78,250.53,250.52,61.73169726]
[1758219661478,0.06,250.53,250.52,61.73169726]
[1758219663097,0.75,250.53,250.52,57.74]
[1758219663803,0.75,250.53,250.49,26.0]
[1758219663979,0.69,250.52,250.5,31.74]
[1758219664174,0.69,250.52,250.51,31.74]
[1758219665095,0.69,250.52,250.46,4.68252861]
[1758219665289,0.06,250.53,250.47,57.74]
[1758219665476,0.75,250.53,250.47,57.74]
[1758219666589,0.75,250.53,250.47,58.4]
[1758219666894,0.75,250.53,250.48,3.99233471]
[1758219667098,0.06,250.53,250.49,57.74]
[1758219667308,0.69,250.52,250.49,57.74]
[1758219667504,0.69,250.51,250.49,57.74]
[1758219667721,0.69,250.5,250.46,30.02255054]
[1758219667883,0.69,250.5,250.49,26.0]
[1758219668078,4.05155086,250.53,250.49,26.0]
[1758219668281,4.05155086,250.53,250.5,31.74]
[1758219668478,4.05155086,250.53,250.46,0.03]
[1758219668694,0.69,250.52,250.47,31.74]
[1758219668889,0.69,250.51,250.47,57.74]
[1758219669198,0.69,250.5,250.46,0.03]
[1758219669379,0.69,250.5,250.48,31.74]
[1758219669688,0.69,250.49,250.48,31.74]
[1758219671507,0.06,250.53,250.48,35.73233471]
[1758219671805,0.75,250.53,250.48,36.39233471]
[1758219671983,0.06,250.53,250.51,26.0]
[1758219672180,0.06,250.53,250.52,31.74]
[1758219673395,0.06,250.53,250.52,35.73169726]
[1758219674098,0.06,250.53,250.52,36.39169726]
[1758219675810,0.06,250.53,250.52,35.73169726]
[1758219676481,0.06,250.53,250.52,36.39169726]
[1758219676881,0.06,250.53,250.52,35.73169726]
[1758219680394,0.06,250.53,250.52,57.72]
[1758219681736,0.06,250.53,250.52,61.71169726]
[1758219682305,4.74167266,250.53,250.5,0.03]
[1758219682495,4.74167266,250.53,250.5,31.75]
[1758219682699,0.69,250.52,250.5,31.75]
[1758219682920,0.69,250.51,250.5,31.75]
[1758219684606,0.06,250.53,250.5,31.75]
[1758219684823,0.75,250.53,250.5,31.75]
[1758219685415,0.69,250.52,250.5,31.75]
[1758219685605,0.69,250.51,250.5,31.75]
[1758219685800,4.05154004,250.53,250.5,31.75]
[1758219686007,0.75,250.53,250.5,31.75]
[1758219686224,0.69,250.52,250.5,31.75]
[1758219686405,0.06,250.53,250.5,31.75]
[1758219686716,0.06,250.53,250.52,26.0]
[1758219687416,0.06,250.53,250.52,31.72]
[1758219687603,0.06,250.53,250.52,32.38]
[1758219688490,0.06,250.53,250.52,36.37169726]
[1758219691512,0.06,250.53,250.52,36.77086698]
[1758219693115,0.06,250.53,250.52,50.65078413]
[1758219696100,0.06,250.53,250.52,52.24774989]
[1758219696919,0.06,250.56,250.55,29.99121931]
[1758219697123,0.06,250.56,250.55,62.09034124]
[1758219697298,1e-08,250.56,250.55,76.67025839]
[1758219697698,1e-08,250.56,250.55,78.26690543]